fUSD/lending_fUSD_20240616
["ID","MTS","AMOUNT","RATE_DAILY","PERIOD"]
[329651543,1718543436665,-965.52,0.00022088,3]
[329651544,1718543436684,-586.35,0.00022088,3]
[329651545,1718543436695,-1551.76,0.00022088,3]
[329651546,1718543436707,-500.0,0.00022088,3]
[329651547,1718543436723,-573.44,0.00022088,3]
[329651548,1718543436740,-500.0,0.00022088,3]
[329651549,1718543436772,-500.0,0.00022088,3]
[329651550,1718543436791,-1506.09,0.00022088,3]
[329651551,1718543436811,-864.61,0.00022088,3]
[329651552,1718543436840,-606.9,0.00022088,3]
[329651553,1718543436852,-500.0,0.00022088,3]
[329651554,1718543436867,-500.0,0.00022088,3]
[329651555,1718543436906,-500.0,0.00022088,3]
[329651556,1718543436926,-516.73,0.00022088,3]
[329651557,1718543436939,-500.0,0.00022088,3]
[329651558,1718543436950,-848.21,0.00022088,3]
[329651559,1718543436975,-544.71,0.00022088,3]
[329651560,1718543436996,-500.0,0.00022088,3]
[329651561,1718543437039,-500.0,0.00022088,3]
[329651562,1718543437055,-500.0,0.00022088,3]
[329651563,1718543437078,-2488.18,0.00022088,3]
[329651564,1718543437089,-1078.22,0.00022088,3]
[329651565,1718543437120,-500.0,0.00022089,3]
[329651566,1718543437134,-571.93,0.00022089,3]
[329651567,1718543437156,-500.0,0.00022089,3]
[329651568,1718543437185,-500.0,0.00022089,3]
[329651569,1718543437195,-185.63947026,0.00022089,3]
[329651570,1718543437207,-500.0,0.00022089,3]
[329651571,1718543437236,-500.0,0.00022089,3]
[329651572,1718543437251,-500.0,0.00022089,3]
[329651573,1718543437277,-500.0,0.00022089,3]
[329651574,1718543437293,-500.0,0.00022089,3]
[329651575,1718543437306,-636.74,0.00022089,3]
[329651576,1718543437327,-500.0,0.00022089,3]
[329651577,1718543437338,-500.0,0.00022089,3]
[329651578,1718543437353,-500.0,0.00022089,3]
[329651579,1718543437365,-500.0,0.00022089,3]
[329651580,1718543437381,-500.0,0.00022089,3]
[329651581,1718543437396,-500.0,0.00022089,3]
[329651582,1718543437460,-500.0,0.00022089,3]
[329651583,1718543437493,-500.0,0.00022089,3]
[329651584,1718543437505,-500.0,0.00022089,3]
[329651585,1718543437519,-500.0,0.00022089,3]
[329651586,1718543437544,-500.0,0.00022089,3]
[329651587,1718543437556,-540.53,0.00022089,3]
[329651588,1718543437572,-1848.32,0.00022089,3]
[329651589,1718543437590,-500.0,0.00022089,3]
[329651590,1718543437602,-3670.35,0.00022089,3]
[329651591,1718543437628,-500.0,0.00022089,3]
[329651592,1718543437640,-1896.48,0.00022089,3]
[329651593,1718543437668,-561.64,0.00022089,3]
[329651594,1718543437688,-500.0,0.00022089,3]
[329651595,1718543437698,-801.16,0.00022089,3]
[329651596,1718543437709,-1647.47,0.00022089,3]
[329651597,1718543437721,-500.0,0.00022089,3]
[329651598,1718543437732,-516.70009674,0.00022089,3]
[329651599,1718543437744,-500.0,0.00022089,3]
[329651600,1718543437784,-1007.94,0.00022089,3]
[329651601,1718543437830,-671.38,0.00022089,3]
[329651602,1718543437842,-500.0,0.00022089,3]
[329651603,1718543437852,-765.87,0.00022089,3]
[329651604,1718543437871,-1108.45,0.00022089,3]
[329651605,1718543437882,-500.0,0.00022089,3]
[329651606,1718543437897,-500.0,0.00022089,3]
[329651607,1718543437909,-1206.94,0.00022089,3]
[329651608,1718543437922,-576.89,0.00022089,3]
[329651609,1718543437935,-1759.47,0.00022089,3]
[329651610,1718543437950,-500.0,0.00022188,3]
[329651611,1718543437961,-500.0,0.00022188,3]
[329651613,1718543437997,-500.0,0.00022188,3]
[329651615,1718543438032,-500.0,0.00022188,3]
[329651616,1718543438045,-500.0,0.00022188,3]
[329651617,1718543438079,-500.0,0.00022188,3]
[329651618,1718543438091,-500.0,0.00022188,3]
[329651619,1718543438117,-500.0,0.00022188,3]
[329651620,1718543438152,-500.0,0.00022188,3]
[329651621,1718543438167,-500.0,0.00022188,3]
[329651622,1718543438178,-500.0,0.00022188,3]
[329651623,1718543438212,-500.0,0.00022188,3]
[329651624,1718543438240,-500.0,0.00022188,3]
[329651625,1718543438253,-500.0,0.00022188,3]
[329651626,1718543438266,-500.0,0.00022188,3]
[329651627,1718543438277,-423.52040736,0.00022188,3]
[329651628,1718543438290,-500.0,0.00022188,3]
[329651629,1718543438301,-150.14,0.00022188,3]
[329651630,1718543438313,-500.0,0.00022188,3]
[329651631,1718543438325,-500.0,0.00022188,3]
[329651632,1718543438338,-500.0,0.00022188,3]
[329651633,1718543438349,-500.0,0.00022188,3]
[329651634,1718543438359,-500.0,0.00022188,3]
[329651635,1718543438389,-500.0,0.00022188,3]
[329651636,1718543438408,-500.0,0.00022188,3]
[329651637,1718543438428,-500.0,0.00022188,3]
[329651638,1718543438444,-500.0,0.00022188,3]
[329651639,1718543438460,-588.02934108,0.00022188,3]
[329651640,1718543438480,-1079.3,0.00022188,3]
[329651641,1718543438492,-500.0,0.00022188,3]
[329651642,1718543438504,-3908.29,0.00022188,3]
[329651643,1718543438514,-500.0,0.00022188,3]
[329651644,1718543438525,-500.0,0.00022188,3]
[329651645,1718543438536,-8007.85,0.00022188,3]
[329651646,1718543438546,-500.0,0.00022188,3]
[329651647,1718543438563,-500.0,0.00022188,3]
[329651648,1718543438597,-500.0,0.00022188,3]
[329651649,1718543438609,-500.0,0.00022188,3]
[329651650,1718543438631,-538.75,0.00022188,3]
[329651651,1718543438664,-1722.87,0.00022188,3]
[329651652,1718543438684,-1489.44,0.00022188,3]
[329651653,1718543438736,-649.48,0.00022188,3]
[329651654,1718543438747,-3520.91,0.00022188,3]
[329651655,1718543438759,-2428.49,0.00022188,3]
[329651656,1718543438786,-500.0,0.00022188,3]
[329651657,1718543438803,-500.0,0.00022188,3]
[329651658,1718543438814,-568.3,0.00022188,3]
[329651659,1718543438840,-80.95255088,0.00022188,3]
[329651660,1718543438898,-419.04744912,0.00022188,3]
[329651661,1718543438911,-1046.44,0.00022188,3]
[329651662,1718543438925,-500.0,0.00022188,3]
[329651663,1718543438955,-500.0,0.00022188,3]
[329651664,1718543438988,-1143.75,0.00022189,3]
[329651665,1718543439015,-2358.06,0.00022189,3]
[329651666,1718543439056,-500.0,0.00022189,3]
[329651667,1718543439092,-500.0,0.00022191,3]
[329651668,1718543439104,-500.0,0.00022191,3]
[329651669,1718543439115,-500.0,0.00022191,3]
[329651670,1718543439126,-500.0,0.00022191,3]
[329651671,1718543439189,-489.17266128,0.00022191,3]
[329651672,1718543439213,-500.0,0.00022191,3]
[329651673,1718543439259,-460.49888773,0.00022191,3]
[329651674,1718543439276,-170.0435773,0.00022191,3]
[329651675,1718543439293,-500.0,0.00022191,3]
[329651676,1718543439330,-500.0,0.00022191,3]
[329651677,1718543439344,-978.08,0.00022191,3]
[329651678,1718543439359,-500.0,0.00022191,3]
[329651679,1718543439412,-3953.08,0.00022191,3]
[329651680,1718543439444,-1627.71,0.00022191,3]
[329651681,1718543439459,-1076.22,0.00022191,3]
[329651682,1718543439499,-500.0,0.00022191,3]
[329651683,1718543439541,-500.0,0.00022191,3]
[329651684,1718543439564,-2749.41,0.00022191,3]
[329651685,1718543439606,-500.0,0.00022191,3]
[329651686,1718543439636,-791.62,0.00022191,3]
[329651687,1718543439660,-500.0,0.00022191,3]
[329651688,1718543439694,-2698.23,0.00022191,3]
[329651689,1718543439709,-900.4,0.00022191,3]
[329651690,1718543439735,-500.0,0.00022191,3]
[329651691,1718543439761,-1139.85,0.00022191,3]
[329651692,1718543439791,-500.0,0.00022191,3]
[329651693,1718543439802,-1672.32,0.00022191,3]
[329651694,1718543439830,-569.27,0.00022191,3]
[329651696,1718543439877,-835.69,0.00022191,3]
[329651697,1718543439898,-1200.74,0.00022191,3]
[329651698,1718543439921,-500.0,0.00022191,3]
[329651699,1718543439941,-666.2,0.00022191,3]
[329651701,1718543439957,-677.79,0.00022191,3]
[329651702,1718543439972,-493.1071521,0.00022191,3]
[329651703,1718543439997,-737.27,0.00022191,3]
[329651704,1718543440009,-1661.59,0.00022191,3]
[329651705,1718543440027,-500.0,0.00022191,3]
[329651706,1718543440038,-1597.3,0.00022191,3]
[329651707,1718543440050,-1539.48,0.00022191,3]
[329651708,1718543440061,-1018.91,0.00022191,3]
[329651709,1718543440075,-1576.0,0.00022191,3]
[329651710,1718543440085,-500.0,0.00022191,3]
[329651711,1718543440106,-500.0,0.00022191,3]
[329651712,1718543440118,-1000.71,0.00022191,3]
[329651713,1718543440130,-1912.84,0.00022191,3]
[329651714,1718543440143,-500.0,0.00022191,3]
[329651715,1718543440155,-965.1,0.00022191,3]
[329651716,1718543440167,-811.0,0.00022191,3]
[329651717,1718543440186,-1707.1,0.00022191,3]
[329651718,1718543440199,-500.0,0.00022191,3]
[329651719,1718543440225,-500.0,0.00022191,3]
[329651720,1718543440250,-500.0,0.00022191,3]
[329651721,1718543440273,-607.65,0.00022191,3]
[329651722,1718543440290,-500.0,0.00022191,3]
[329651723,1718543440301,-500.0,0.00022191,3]
[329651724,1718543440324,-776.41,0.00022191,3]
[329651725,1718543440337,-757.14,0.00022191,3]
[329651726,1718543440356,-6644.03,0.00022191,3]
[329651727,1718543440372,-530.75,0.00022191,3]
[329651728,1718543440387,-500.0,0.00022191,3]
[329651729,1718543440404,-500.0,0.00022191,3]
[329651730,1718543440416,-500.0,0.00022191,3]
[329651731,1718543440434,-500.0,0.00022191,3]
[329651732,1718543440445,-500.0,0.00022191,3]
[329651733,1718543440459,-500.0,0.00022191,3]
[329651734,1718543440470,-2715.197023,0.00022201,2]
[329651735,1718543440481,-3954.5648,0.00022201,2]
[329651736,1718543440500,-253.62978949,0.00022236,2]
[329651737,1718543440511,-215.0,0.00022264,2]
[329651738,1718543440539,-2380.74811563,0.00022323,2]
[329651739,1718543440560,-377.02542168,0.00022361,2]
[329651740,1718543440571,-557.10430728,0.00022361,2]
[329651741,1718543440584,-341.35320868,0.00022361,2]
[329651742,1718543440599,-525.61846069,0.00022361,2]
[329651743,1718543440611,-305.57634205,0.00022361,2]
[329651744,1718543440625,-500.0,0.00022362,3]
[329651745,1718543440652,-500.0,0.00022362,3]
[329651746,1718543440663,-19544.63,0.00022362,3]
[329651747,1718543440689,-594.24,0.00022362,3]
[329651748,1718543440732,-500.0,0.00022362,3]
[329651749,1718543440753,-1157.63,0.00022362,3]
[329651750,1718543440768,-500.0,0.00022362,3]
[329651751,1718543440782,-3131.91,0.00022362,3]
[329651752,1718543440795,-451.26280397,0.00022362,3]
[329651753,1718543441448,-514.25719603,0.00022362,3]
[329651754,1718543441460,-586.35,0.00022362,3]
[329651755,1718543441484,-119.31463681,0.00022362,3]
[329651806,1718543444734,-1000.0,0.00021815,2]
[329651807,1718543444780,-503.34279719,0.00021817,2]
[329651808,1718543444794,-500.0,0.00021917,2]
[329651809,1718543444809,-500.0,0.00021917,2]
[329651810,1718543444821,-432.19856967,0.00021917,2]
[329651811,1718543444837,-67.80143033,0.00021917,2]
[329651812,1718543444848,-296.23186959,0.00021917,2]
[329651813,1718543444905,-203.76813041,0.00021917,2]
[329651814,1718543444916,-500.0,0.00022088,3]
[329651815,1718543444943,-655.28,0.00022089,3]
[329651816,1718543444961,-503.34279715,0.00022115,2]
[329651817,1718543444984,-629.85,0.00022188,3]
[329651818,1718543444997,-500.0,0.00022191,3]
[329651819,1718543445008,-500.0,0.00022191,3]
[329651820,1718543445020,-1432.44536319,0.00022362,3]
[329651821,1718543445034,-500.0,0.00022362,3]
[329651822,1718543445050,-573.44,0.00022362,3]
[329651823,1718543445064,-500.0,0.00022362,3]
[329651824,1718543445087,-500.0,0.00022362,3]
[329651825,1718543445102,-1506.09,0.00022362,3]
[329651826,1718543445119,-864.61,0.00022362,3]
[329651827,1718543445135,-606.9,0.00022362,3]
[329651828,1718543445146,-500.0,0.00022362,3]
[329651829,1718543445162,-500.0,0.00022362,3]
[329651830,1718543445185,-500.0,0.00022362,3]
[329651831,1718543445199,-516.73,0.00022362,3]
[329651832,1718543445221,-500.0,0.00022362,3]
[329651833,1718543445250,-848.21,0.00022362,3]
[329651834,1718543445283,-544.71,0.00022362,3]
[329651835,1718543445295,-500.0,0.00022362,3]
[329651836,1718543445306,-500.0,0.00022362,3]
[329651837,1718543445318,-500.0,0.00022362,3]
[329651838,1718543445330,-2488.18,0.00022362,3]
[329651839,1718543445341,-1078.22,0.00022362,3]
[329651840,1718543445354,-500.0,0.00022362,3]
[329651841,1718543445369,-571.93,0.00022363,3]
[329651842,1718543445384,-500.0,0.00022363,3]
[329651843,1718543445395,-342.81873048,0.00022363,3]
[329651844,1718543445406,-500.0,0.00022363,3]
[329651845,1718543445422,-500.0,0.00022363,3]
[329651846,1718543445449,-500.0,0.00022363,3]
[329651847,1718543445460,-500.0,0.00022363,3]
[329651848,1718543445482,-500.0,0.00022363,3]
[329651849,1718543445497,-636.74,0.00022363,3]
[329651850,1718543445516,-500.0,0.00022363,3]
[329651851,1718543445572,-500.0,0.00022363,3]
[329651852,1718543445592,-500.0,0.00022363,3]
[329651853,1718543445630,-500.0,0.00022363,3]
[329651854,1718543445651,-500.0,0.00022363,3]
[329651855,1718543445664,-581.92334415,0.00022363,3]
[329651856,1718543445689,-500.0,0.00022363,3]
[329651857,1718543445707,-316.88845287,0.00022363,3]
[329651858,1718543445733,-500.0,0.00022363,3]
[329651859,1718543445797,-500.0,0.00022363,3]
[329651860,1718543445813,-500.0,0.00022363,3]
[329651861,1718543445825,-500.0,0.00022363,3]
[329651862,1718543445847,-500.0,0.00022363,3]
[329651863,1718543445891,-561.64,0.00022363,3]
[329651864,1718543445914,-566.01945605,0.00022363,3]
[329651865,1718543445926,-801.16,0.00022363,3]
[329651867,1718543445937,-1647.47,0.00022363,3]
[329651869,1718543445951,-500.0,0.00022363,3]
[329651870,1718543445979,-500.0,0.00022363,3]
[329651871,1718543446016,-1007.94,0.00022363,3]
[329651872,1718543446053,-671.38,0.00022363,3]
[329651873,1718543446065,-500.0,0.00022363,3]
[329651874,1718543446087,-765.87,0.00022363,3]
[329651875,1718543446122,-1108.45,0.00022363,3]
[329651876,1718543446139,-500.0,0.00022363,3]
[329651877,1718543446157,-500.0,0.00022363,3]
[329651878,1718543446180,-1206.94,0.00022363,3]
[329651879,1718543446196,-258.12664717,0.00022363,2]
[329651880,1718543446220,-576.89,0.00022363,3]
[329651881,1718543446233,-1759.47,0.00022363,3]
[329651882,1718543446253,-246.5961,0.00022365,2]
[329651884,1718543446274,-177.76126797,0.00022365,2]
[329651886,1718543446286,-207.48520993,0.00022452,2]
[329651887,1718543446304,-367.87590175,0.00022461,2]
[329651889,1718543446316,-304.52919859,0.00022461,2]
[329651890,1718543446331,-519.37400188,0.00022461,2]
[329651891,1718543446343,-500.0,0.00022462,3]
[329651892,1718543446355,-500.0,0.00022462,3]
[329651893,1718543446380,-500.0,0.00022462,3]
[329651894,1718543446394,-500.0,0.00022462,3]
[329651895,1718543446411,-500.0,0.00022462,3]
[329651896,1718543446432,-500.0,0.00022462,3]
[329651897,1718543446444,-307.80950282,0.00022462,3]
[329651898,1718543446461,-192.19049718,0.00022462,3]
[329651900,1718543446477,-500.0,0.00022462,3]
[329651903,1718543446499,-500.0,0.00022462,3]
[329651905,1718543446518,-500.0,0.00022462,3]
[329651907,1718543446532,-500.0,0.00022462,3]
[329651909,1718543446545,-500.0,0.00022462,3]
[329651910,1718543446556,-500.0,0.00022462,3]
[329651912,1718543446573,-500.0,0.00022462,3]
[329651914,1718543446588,-500.0,0.00022462,3]
[329651915,1718543446601,-150.14,0.00022462,3]
[329651917,1718543446616,-500.0,0.00022462,3]
[329651919,1718543446627,-500.0,0.00022462,3]
[329651920,1718543446640,-500.0,0.00022462,3]
[329651922,1718543446654,-500.0,0.00022462,3]
[329651924,1718543446669,-500.0,0.00022462,3]
[329651926,1718543446684,-417.6695029,0.00022462,3]
[329651929,1718543446709,-82.3304971,0.00022462,3]
[329651931,1718543446733,-500.0,0.00022462,3]
[329651933,1718543446749,-382.65397117,0.00022462,3]
[329651936,1718543447026,-1061.16,0.00021917,2]
[329651937,1718543447040,-1061.16,0.00022191,3]
[329651938,1718543447053,-655.28,0.00022363,3]
[329651940,1718543447084,-503.34279715,0.00022412,2]
[329651942,1718543447100,-117.34602883,0.00022462,3]
[329651944,1718543447116,-500.0,0.00022462,3]
[329651946,1718543447140,-500.0,0.00022462,3]
[329651948,1718543447153,-3908.29,0.00022462,3]
[329651949,1718543447166,-202.64958687,0.00022462,3]
[329651950,1718543447183,-500.0,0.00022462,3]
[329651952,1718543447203,-2340.68360331,0.00022462,3]
[329651987,1718543452684,-5667.16639669,0.00022462,3]
[329651988,1718543452706,-500.0,0.00022462,3]
[329651989,1718543452724,-500.0,0.00022462,3]
[329651990,1718543452740,-500.0,0.00022462,3]
[329651991,1718543452753,-500.0,0.00022462,3]
[329651992,1718543452796,-538.75,0.00022462,3]
[329651993,1718543452811,-1722.87,0.00022462,3]
[329651994,1718543452823,-1489.44,0.00022462,3]
[329651995,1718543452840,-649.48,0.00022462,3]
[329651996,1718543452856,-3520.91,0.00022462,3]
[329651997,1718543452885,-2428.49,0.00022462,3]
[329651998,1718543452922,-500.0,0.00022462,3]
[329651999,1718543452941,-333.9549498,0.00022462,3]
[329652000,1718543452952,-568.3,0.00022462,3]
[329652001,1718543452967,-500.0,0.00022462,3]
[329652002,1718543452992,-1046.44,0.00022462,3]
[329652003,1718543453011,-500.0,0.00022462,3]
[329652004,1718543453040,-500.0,0.00022462,3]
[329652005,1718543453096,-629.85,0.00022462,3]
[329652006,1718543453108,-650.13195753,0.00022463,2]
[329652007,1718543453128,-429909.16403317,0.00022463,2]
[329652008,1718543453145,-1143.75,0.00022463,3]
[329652009,1718543453160,-2358.06,0.00022463,3]
[329652010,1718543453173,-500.0,0.00022463,3]
[329652011,1718543453185,-182.70852254,0.00022463,2]
[329652012,1718543453199,-7484.55387127,0.00022463,2]
[329652013,1718543453213,-472.26794574,0.00022465,3]
[329652014,1718543453268,-500.0,0.00022465,3]
[329652015,1718543453300,-500.0,0.00022465,3]
[329652016,1718543453318,-500.0,0.00022465,3]
[329652017,1718543453335,-500.0,0.00022465,3]
[329652018,1718543453366,-500.0,0.00022465,3]
[329652019,1718543453385,-500.0,0.00022465,3]
[329652020,1718543453400,-3953.08,0.00022465,3]
[329652021,1718543453422,-1627.71,0.00022465,3]
[329652022,1718543453434,-1076.22,0.00022465,3]
[329652023,1718543453464,-500.0,0.00022465,3]
[329652025,1718543453475,-2749.41,0.00022465,3]
[329652028,1718543453498,-500.0,0.00022465,3]
[329652029,1718543453512,-791.62,0.00022465,3]
[329652030,1718543453549,-500.0,0.00022465,3]
[329652031,1718543453572,-2698.23,0.00022465,3]
[329652032,1718543453589,-900.4,0.00022465,3]
[329652033,1718543453606,-500.0,0.00022465,3]
[329652034,1718543453619,-1139.85,0.00022465,3]
[329652035,1718543453632,-500.0,0.00022465,3]
[329652036,1718543453676,-1672.32,0.00022465,3]
[329652037,1718543453694,-569.27,0.00022465,3]
[329652038,1718543453751,-835.69,0.00022465,3]
[329652039,1718543453776,-1200.74,0.00022465,3]
[329652040,1718543453787,-500.0,0.00022465,3]
[329652041,1718543453803,-666.2,0.00022465,3]
[329652042,1718543453815,-677.79,0.00022465,3]
[329652043,1718543453827,-737.27,0.00022465,3]
[329652044,1718543453842,-1661.59,0.00022465,3]
[329652045,1718543453864,-500.0,0.00022465,3]
[329652046,1718543453875,-1597.3,0.00022465,3]
[329652047,1718543453895,-1539.48,0.00022465,3]
[329652048,1718543453914,-1018.91,0.00022465,3]
[329652049,1718543453965,-1576.0,0.00022465,3]
[329652050,1718543453999,-500.0,0.00022465,3]
[329652051,1718543454013,-500.0,0.00022465,3]
[329652052,1718543454037,-1000.71,0.00022465,3]
[329652053,1718543454056,-965.1,0.00022465,3]
[329652054,1718543454077,-1912.84,0.00022465,3]
[329652055,1718543454106,-500.0,0.00022465,3]
[329652056,1718543454120,-811.0,0.00022465,3]
[329652057,1718543454150,-1707.1,0.00022465,3]
[329652058,1718543454171,-500.0,0.00022465,3]
[329652059,1718543454195,-500.0,0.00022465,3]
[329652060,1718543454221,-500.0,0.00022465,3]
[329652061,1718543454250,-607.65,0.00022465,3]
[329652062,1718543454270,-500.0,0.00022465,3]
[329652063,1718543454290,-500.0,0.00022465,3]
[329652064,1718543454318,-776.41,0.00022465,3]
[329652065,1718543454336,-757.14,0.00022465,3]
[329652066,1718543454368,-6644.03,0.00022465,3]
[329652067,1718543454390,-530.75,0.00022465,3]
[329652068,1718543454420,-500.0,0.00022465,3]
[329652069,1718543454436,-500.0,0.00022465,3]
[329652070,1718543454448,-500.0,0.00022465,3]
[329652071,1718543454468,-500.0,0.00022465,3]
[329652072,1718543454480,-500.0,0.00022465,3]
[329652073,1718543454494,-500.0,0.00022465,3]
[329652074,1718543454524,-500.0,0.00022465,3]
[329652075,1718543454538,-500.0,0.00022465,3]
[329652076,1718543454562,-1061.16,0.00022465,3]
[329652077,1718543454574,-3685.558,0.00022475,2]
[329652078,1718543454597,-2715.197023,0.00022478,2]
[329652079,1718543454613,-3954.5648,0.00022478,2]
[329652080,1718543454634,-715.15608201,0.00022522,2]
[329652081,1718543454667,-500.0,0.00022636,3]
[329652082,1718543454691,-594.24,0.00022636,3]
[329652083,1718543454725,-500.0,0.00022636,3]
[329652084,1718543454739,-500.0,0.00022636,3]
[329652085,1718543454751,-3131.91,0.00022636,3]
[329652086,1718543454764,-965.52,0.00022636,3]
[329652087,1718543454779,-586.35,0.00022636,3]
[329652088,1718543454798,-1551.76,0.00022636,3]
[329652089,1718543454845,-500.0,0.00022636,3]
[329652090,1718543454907,-573.44,0.00022636,3]
[329652091,1718543454929,-500.0,0.00022636,3]
[329652092,1718543454952,-500.0,0.00022636,3]
[329652093,1718543454969,-1506.09,0.00022636,3]
[329652094,1718543454982,-864.61,0.00022636,3]
[329652095,1718543455039,-606.9,0.00022636,3]
[329652096,1718543455061,-500.0,0.00022636,3]
[329652097,1718543455072,-500.0,0.00022636,3]
[329652098,1718543455104,-500.0,0.00022636,3]
[329652099,1718543455116,-516.73,0.00022636,3]
[329652100,1718543455129,-500.0,0.00022636,3]
[329652101,1718543455143,-848.21,0.00022636,3]
[329652102,1718543455161,-544.71,0.00022636,3]
[329652103,1718543455179,-484.64,0.00022636,3]
[329652104,1718543455192,-2488.18,0.00022636,3]
[329652105,1718543455208,-500.0,0.00022636,3]
[329652106,1718543455244,-1078.22,0.00022636,3]
[329652107,1718543455276,-500.0,0.00022636,3]
[329652108,1718543455292,-571.93,0.00022637,3]
[329652109,1718543455305,-500.0,0.00022637,3]
[329652110,1718543455320,-500.0,0.00022637,3]
[329652111,1718543455341,-500.0,0.00022637,3]
[329652112,1718543455352,-648.82027744,0.00022637,3]
[329652113,1718543455363,-500.0,0.00022637,3]
[329652114,1718543455374,-500.0,0.00022637,3]
[329652115,1718543455401,-636.74,0.00022637,3]
[329652116,1718543455427,-500.0,0.00022637,3]
[329652117,1718543455453,-500.0,0.00022637,3]
[329652118,1718543455469,-500.0,0.00022637,3]
[329652119,1718543455487,-500.0,0.00022637,3]
[329652120,1718543455498,-500.0,0.00022637,3]
[329652121,1718543455510,-500.0,0.00022637,3]
[329652122,1718543455525,-500.0,0.00022637,3]
[329652123,1718543455535,-500.0,0.00022637,3]
[329652124,1718543455552,-500.0,0.00022637,3]
[329652125,1718543455584,-500.0,0.00022637,3]
[329652126,1718543455595,-500.0,0.00022637,3]
[329652127,1718543455618,-561.64,0.00022637,3]
[329652128,1718543455631,-801.16,0.00022637,3]
[329652129,1718543455645,-1647.47,0.00022637,3]
[329652130,1718543455658,-500.0,0.00022637,3]
[329652131,1718543455686,-500.0,0.00022637,3]
[329652132,1718543455707,-1007.94,0.00022637,3]
[329652133,1718543455732,-671.38,0.00022637,3]
[329652134,1718543455757,-222.86457468,0.00022637,3]
[329652135,1718543455777,-765.87,0.00022637,3]
[329652136,1718543455789,-1108.45,0.00022637,3]
[329652137,1718543455799,-500.0,0.00022637,3]
[329652138,1718543455814,-500.0,0.00022637,3]
[329652139,1718543455834,-1206.94,0.00022637,3]
[329652140,1718543455860,-576.89,0.00022637,3]
[329652141,1718543455896,-1759.47,0.00022637,3]
[329652142,1718543455951,-655.28,0.00022637,3]
[329652143,1718543456007,-500.0,0.00022736,3]
[329652144,1718543456049,-500.0,0.00022736,3]
[329652145,1718543456088,-500.0,0.00022736,3]
[329652146,1718543456110,-500.0,0.00022736,3]
[329652147,1718543456161,-500.0,0.00022736,3]
[329652148,1718543456183,-500.0,0.00022736,3]
[329652149,1718543456213,-500.0,0.00022736,3]
[329652150,1718543456253,-500.0,0.00022736,3]
[329652151,1718543456266,-500.0,0.00022736,3]
[329652152,1718543456283,-500.0,0.00022736,3]
[329652153,1718543456295,-500.0,0.00022736,3]
[329652154,1718543456306,-500.0,0.00022736,3]
[329652155,1718543456325,-500.0,0.00022736,3]
[329652156,1718543456346,-500.0,0.00022736,3]
[329652157,1718543456358,-150.14,0.00022736,3]
[329652158,1718543456393,-500.0,0.00022736,3]
[329652159,1718543456406,-500.0,0.00022736,3]
[329652160,1718543456419,-500.0,0.00022736,3]
[329652161,1718543456459,-500.0,0.00022736,3]
[329652162,1718543456473,-500.0,0.00022736,3]
[329652163,1718543456514,-500.0,0.00022736,3]